[Event "Titled Tuesday Blitz August 15 Early 2023"]
[White "Papayan, Oleg"]
[Black "Deac, Bogdan-Daniel"]
[WhiteFideId "4193911"]
[BlackFideId "1226380"]
[WhiteElo "2606"]
[BlackElo "3019"]
[Result "0-1"]
[Round "2"]
[TimeControl "180+1"]
[Date "2023.08.15"]
[WhiteClock "0:00:15"]
[BlackClock "0:00:17"]
[Board "12"]

1. e4 {[%clk 0:03:00]}  Nf6 {[%clk 0:02:59]} 2. e5 {[%clk 0:03:00]}  Nd5 {[%clk 0:02:59]} 3. c4 {[%clk 0:03:01]}  Nb6 {[%clk 0:02:59]} 4. d4 {[%clk 0:03:01]}  d6 {[%clk 0:02:59]} 5. f4 {[%clk 0:03:02]}  g6 {[%clk 0:02:56]} 6. Nc3 {[%clk 0:03:02]}  Bg7 {[%clk 0:02:57]} 7. Be3 {[%clk 0:03:02]}  O-O {[%clk 0:02:54]} 8. Qd2 {[%clk 0:02:58]}  dxe5 {[%clk 0:02:50]} 9. dxe5 {[%clk 0:02:40]}  Qxd2+ {[%clk 0:02:47]} 10. Bxd2 {[%clk 0:02:36]}  Na6 {[%clk 0:02:42]} 11. O-O-O {[%clk 0:02:21]}  Be6 {[%clk 0:01:52]} 12. b3 {[%clk 0:02:16]}  Rad8 {[%clk 0:01:52]} 13. Nf3 {[%clk 0:02:14]}  f6 {[%clk 0:01:49]} 14. Be2 {[%clk 0:01:59]}  fxe5 {[%clk 0:01:26]} 15. Nxe5 {[%clk 0:02:00]}  Nd7 {[%clk 0:01:23]} 16. Nxd7 {[%clk 0:01:36]}  Rxd7 {[%clk 0:01:23]} 17. Ne4 {[%clk 0:00:56]}  Bf5 {[%clk 0:01:16]} 18. Bf3 {[%clk 0:00:48]}  c6 {[%clk 0:01:08]} 19. Rhe1 {[%clk 0:00:41]}  Rfd8 {[%clk 0:01:06]} 20. g4 {[%clk 0:00:21]}  Bxe4 {[%clk 0:01:01]} 21. Bxe4 {[%clk 0:00:22]}  Nc5 {[%clk 0:00:51]} 22. Bc2 {[%clk 0:00:15]}  Bb2+ {[%clk 0:00:33]} 23. Kxb2 {[%clk 0:00:15]}  Rxd2 {[%clk 0:00:34]} 24. Rxd2 {[%clk 0:00:07]}  Rxd2 {[%clk 0:00:34]} 25. Rxe7 {[%clk 0:00:07]}  Rxh2 {[%clk 0:00:34]} 26. Kc3 {[%clk 0:00:05]}  Kf8 {[%clk 0:00:28]} 27. Rc7 {[%clk 0:00:03]}  a5 {[%clk 0:00:28]} 28. f5 {[%clk 0:00:04]}  gxf5 {[%clk 0:00:22]} 29. Bxf5 {[%clk 0:00:05]}  h5 {[%clk 0:00:08]} 30. gxh5 {[%clk 0:00:04]}  Rxh5 {[%clk 0:00:09]} 31. Bc2 {[%clk 0:00:04]}  Rg5 {[%clk 0:00:07]} 32. Rh7 {[%clk 0:00:04]}  Ke8 {[%clk 0:00:07]} 33. Kd4 {[%clk 0:00:04]}  Kd8 {[%clk 0:00:06]} 34. a3 {[%clk 0:00:04]}  Kc8 {[%clk 0:00:06]} 35. b4 {[%clk 0:00:04]}  axb4 {[%clk 0:00:06]} 36. axb4 {[%clk 0:00:05]}  Ne6+ {[%clk 0:00:07]} 37. Kc3 {[%clk 0:00:05]}  Rg3+ {[%clk 0:00:07]} 38. Kb2 {[%clk 0:00:06]}  Nd4 {[%clk 0:00:07]} 39. Rh4 {[%clk 0:00:05]}  Nf3 {[%clk 0:00:07]} 40. Bf5+ {[%clk 0:00:05]}  Kb8 {[%clk 0:00:07]} 41. Rh8+ {[%clk 0:00:05]}  Ka7 {[%clk 0:00:07]} 42. Rh3 {[%clk 0:00:06]}  Rg2+ {[%clk 0:00:06]} 43. Kc3 {[%clk 0:00:06]}  Ne5 {[%clk 0:00:06]} 44. Be4 {[%clk 0:00:05]}  Rg4 {[%clk 0:00:06]} 45. Re3 {[%clk 0:00:05]}  Rf4 {[%clk 0:00:06]} 46. Kd4 {[%clk 0:00:05]}  Nd7 {[%clk 0:00:05]} 47. Kc3 {[%clk 0:00:05]}  Nf6 {[%clk 0:00:04]} 48. Bd3 {[%clk 0:00:05]}  Nh5 {[%clk 0:00:04]} 49. b5 {[%clk 0:00:05]}  cxb5 {[%clk 0:00:03]} 50. cxb5 {[%clk 0:00:06]}  Nf6 {[%clk 0:00:03]} 51. Re5 {[%clk 0:00:06]}  Kb6 {[%clk 0:00:03]} 52. Re6+ {[%clk 0:00:06]}  Kc5 {[%clk 0:00:03]} 53. Re5+ {[%clk 0:00:05]}  Nd5+ {[%clk 0:00:04]} 54. Kd2 {[%clk 0:00:05]}  Kd4 {[%clk 0:00:04]} 55. Rh5 {[%clk 0:00:03]}  Rf2+ {[%clk 0:00:04]} 56. Be2 {[%clk 0:00:03]}  Rxe2+ {[%clk 0:00:03]} 57. Kxe2 {[%clk 0:00:02]}  Nf4+ {[%clk 0:00:04]} 58. Kd2 {[%clk 0:00:03]}  Nxh5 {[%clk 0:00:05]} 59. Kc2 {[%clk 0:00:03]}  Kc5 {[%clk 0:00:05]} 60. Kb3 {[%clk 0:00:04]}  Kxb5 {[%clk 0:00:06]} 61. Ka3 {[%clk 0:00:05]}  b6 {[%clk 0:00:07]} 62. Ka2 {[%clk 0:00:05]}  Kc5 {[%clk 0:00:08]} 63. Kb3 {[%clk 0:00:06]}  b5 {[%clk 0:00:09]} 64. Kb2 {[%clk 0:00:07]}  Nf6 {[%clk 0:00:10]} 65. Ka2 {[%clk 0:00:08]}  Nd5 {[%clk 0:00:11]} 66. Ka3 {[%clk 0:00:09]}  Kc4 {[%clk 0:00:12]} 67. Kb2 {[%clk 0:00:10]}  b4 {[%clk 0:00:12]} 68. Ka2 {[%clk 0:00:10]}  b3+ {[%clk 0:00:13]} 69. Kb1 {[%clk 0:00:11]}  Kb4 {[%clk 0:00:14]} 70. Ka1 {[%clk 0:00:12]}  Kc3 {[%clk 0:00:15]} 71. Kb1 {[%clk 0:00:13]}  b2 {[%clk 0:00:15]} 72. Ka2 {[%clk 0:00:14]}  Kc2 {[%clk 0:00:16]} 73. Ka3 {[%clk 0:00:14]}  b1=Q {[%clk 0:00:17]} 74. Ka4 {[%clk 0:00:15]}  Qb4# {[%clk 0:00:17]} 0-1


[Site "https://www.chess.com"]

[Event "Titled Tuesday Blitz August 15 Early 2023"]
[White "Korobov, Anton"]
[Black "Sadykov, Ramil"]
[WhiteFideId "14105730"]
[BlackFideId "24113590"]
[WhiteElo "3009"]
[BlackElo "2604"]
[Result "1-0"]
[Round "2"]
[TimeControl "180+1"]
[Date "2023.08.15"]
[WhiteClock "0:01:24"]
[BlackClock "0:00:10"]
[Board "14"]

1. d4 {[%clk 0:03:00]}  d5 {[%clk 0:02:59]} 2. Nf3 {[%clk 0:03:00]}  Nf6 {[%clk 0:02:59]} 3. c4 {[%clk 0:03:01]}  e6 {[%clk 0:03:00]} 4. Nc3 {[%clk 0:03:01]}  Be7 {[%clk 0:03:00]} 5. Bf4 {[%clk 0:02:59]}  O-O {[%clk 0:03:00]} 6. e3 {[%clk 0:03:00]}  a6 {[%clk 0:03:00]} 7. c5 {[%clk 0:02:52]}  b6 {[%clk 0:03:00]} 8. cxb6 {[%clk 0:02:52]}  cxb6 {[%clk 0:03:00]} 9. Rc1 {[%clk 0:02:52]}  Bb7 {[%clk 0:02:54]} 10. Bd3 {[%clk 0:02:52]}  Nc6 {[%clk 0:02:53]} 11. h3 {[%clk 0:02:49]}  b5 {[%clk 0:02:42]} 12. O-O {[%clk 0:02:46]}  Rc8 {[%clk 0:02:42]} 13. a4 {[%clk 0:02:44]}  b4 {[%clk 0:02:28]} 14. Nb1 {[%clk 0:02:43]}  Ne4 {[%clk 0:02:21]} 15. Nbd2 {[%clk 0:02:25]}  f5 {[%clk 0:02:16]} 16. Nb3 {[%clk 0:02:23]}  Na5 {[%clk 0:01:52]} 17. Rxc8 {[%clk 0:02:12]}  Bxc8 {[%clk 0:01:53]} 18. Bxe4 {[%clk 0:02:02]}  dxe4 {[%clk 0:01:42]} 19. Ne5 {[%clk 0:02:02]}  Bb7 {[%clk 0:01:35]} 20. Nc5 {[%clk 0:02:00]}  Bd5 {[%clk 0:01:22]} 21. Nxa6 {[%clk 0:01:57]}  Bb3 {[%clk 0:01:11]} 22. Qe2 {[%clk 0:01:48]}  Bxa4 {[%clk 0:00:48]} 23. Ra1 {[%clk 0:01:45]}  Qe8 {[%clk 0:00:48]} 24. Nc7 {[%clk 0:01:42]}  Qc8 {[%clk 0:00:43]} 25. Rxa4 {[%clk 0:01:38]}  Qxc7 {[%clk 0:00:42]} 26. Qa6 {[%clk 0:01:38]}  Bd8 {[%clk 0:00:31]} 27. Qxe6+ {[%clk 0:01:34]}  Kh8 {[%clk 0:00:29]} 28. Rxa5 {[%clk 0:01:34]}  Qc1+ {[%clk 0:00:20]} 29. Kh2 {[%clk 0:01:33]}  g5 {[%clk 0:00:13]} 30. Nf7+ {[%clk 0:01:28]}  Rxf7 {[%clk 0:00:10]} 31. Qxf7 {[%clk 0:01:24]} 1-0


[Site "https://www.chess.com"]

[Event "Titled Tuesday Blitz August 15 Early 2023"]
[White "SmirnovAlexandrA"]
[Black "Andreikin, Dmitry"]
[BlackFideId "4158814"]
[WhiteElo "2603"]
[BlackElo "3008"]
[Result "1/2-1/2"]
[Round "2"]
[TimeControl "180+1"]
[Date "2023.08.15"]
[WhiteClock "0:00:06"]
[BlackClock "0:00:05"]
[Board "15"]

1. e4 {[%clk 0:02:54]}  c5 {[%clk 0:02:59]} 2. Nf3 {[%clk 0:02:52]}  e6 {[%clk 0:03:00]} 3. g3 {[%clk 0:02:43]}  Nc6 {[%clk 0:02:55]} 4. Bg2 {[%clk 0:02:43]}  Nge7 {[%clk 0:02:52]} 5. d4 {[%clk 0:02:41]}  cxd4 {[%clk 0:02:51]} 6. Nxd4 {[%clk 0:02:42]}  Nxd4 {[%clk 0:02:52]} 7. Qxd4 {[%clk 0:02:41]}  Nc6 {[%clk 0:02:52]} 8. Qd3 {[%clk 0:02:41]}  Bc5 {[%clk 0:02:49]} 9. O-O {[%clk 0:02:42]}  O-O {[%clk 0:02:47]} 10. Nc3 {[%clk 0:02:34]}  Ne5 {[%clk 0:02:34]} 11. Qe2 {[%clk 0:02:32]}  b6 {[%clk 0:02:30]} 12. a3 {[%clk 0:02:24]}  a5 {[%clk 0:02:29]} 13. Rd1 {[%clk 0:02:17]}  Ba6 {[%clk 0:02:28]} 14. Nb5 {[%clk 0:02:06]}  f5 {[%clk 0:02:17]} 15. exf5 {[%clk 0:01:58]}  Rxf5 {[%clk 0:02:10]} 16. Bf4 {[%clk 0:00:50]}  Ng6 {[%clk 0:01:57]} 17. Qe4 {[%clk 0:00:43]}  Nxf4 {[%clk 0:01:48]} 18. gxf4 {[%clk 0:00:44]}  Rc8 {[%clk 0:01:23]} 19. Nd6 {[%clk 0:00:44]}  Bxd6 {[%clk 0:01:10]} 20. Rxd6 {[%clk 0:00:44]}  Rc4 {[%clk 0:00:57]} 21. Qxe6+ {[%clk 0:00:41]}  dxe6 {[%clk 0:00:57]} 22. Rxd8+ {[%clk 0:00:42]}  Kf7 {[%clk 0:00:58]} 23. Rad1 {[%clk 0:00:23]}  Rcxf4 {[%clk 0:00:52]} 24. R1d2 {[%clk 0:00:21]}  Rg5 {[%clk 0:00:44]} 25. Kh1 {[%clk 0:00:20]}  Bc4 {[%clk 0:00:21]} 26. b3 {[%clk 0:00:14]}  Re5 {[%clk 0:00:12]} 27. Rd1 {[%clk 0:00:08]}  Be2 {[%clk 0:00:12]} 28. Re1 {[%clk 0:00:07]}  Rxf2 {[%clk 0:00:12]} 29. Rd2 {[%clk 0:00:06]}  Rxg2 {[%clk 0:00:03]} 30. Kxg2 {[%clk 0:00:07]}  Rg5+ {[%clk 0:00:04]} 31. Kf2 {[%clk 0:00:07]}  Bg4 {[%clk 0:00:04]} 32. Rd7+ {[%clk 0:00:06]}  Kf6 {[%clk 0:00:04]} 33. Rb7 {[%clk 0:00:06]}  Bf5 {[%clk 0:00:04]} 34. Rxb6 {[%clk 0:00:06]}  Rh5 {[%clk 0:00:04]} 35. Kg1 {[%clk 0:00:06]}  Rg5+ {[%clk 0:00:04]} 36. Kf2 {[%clk 0:00:06]}  Rh5 {[%clk 0:00:05]} 37. Kg3 {[%clk 0:00:06]}  Rg5+ {[%clk 0:00:05]} 38. Kf2 {[%clk 0:00:06]} 1/2-1/2


[Site "https://www.chess.com"]

[Event "Titled Tuesday Blitz August 15 Early 2023"]
[White "Kramnik, Vladimir"]
[Black "Kalashian, David"]
[WhiteFideId "4101588"]
[BlackFideId "13302418"]
[WhiteElo "3005"]
[BlackElo "2601"]
[Result "1-0"]
[Round "2"]
[TimeControl "180+1"]
[Date "2023.08.15"]
[WhiteClock "0:01:52"]
[BlackClock "0:01:07"]
[Board "18"]

1. c4 {[%clk 0:03:00]}  Nf6 {[%clk 0:02:59]} 2. Nc3 {[%clk 0:03:00]}  g6 {[%clk 0:02:59]} 3. g3 {[%clk 0:02:59]}  Bg7 {[%clk 0:02:59]} 4. Bg2 {[%clk 0:03:00]}  O-O {[%clk 0:02:58]} 5. d3 {[%clk 0:03:00]}  d6 {[%clk 0:02:56]} 6. Rb1 {[%clk 0:02:59]}  a5 {[%clk 0:02:52]} 7. a3 {[%clk 0:02:58]}  c6 {[%clk 0:02:31]} 8. e4 {[%clk 0:02:58]}  c5 {[%clk 0:02:27]} 9. Nge2 {[%clk 0:02:52]}  Nc6 {[%clk 0:02:28]} 10. O-O {[%clk 0:02:50]}  Bg4 {[%clk 0:02:17]} 11. f3 {[%clk 0:02:45]}  Bd7 {[%clk 0:02:16]} 12. Be3 {[%clk 0:02:45]}  Ne8 {[%clk 0:02:03]} 13. f4 {[%clk 0:02:32]}  Nc7 {[%clk 0:02:03]} 14. d4 {[%clk 0:02:15]}  cxd4 {[%clk 0:01:54]} 15. Nxd4 {[%clk 0:02:15]}  Rc8 {[%clk 0:01:51]} 16. Ndb5 {[%clk 0:02:01]}  Ne6 {[%clk 0:01:35]} 17. Nd5 {[%clk 0:01:55]}  Ned4 {[%clk 0:01:09]} 18. Nxd4 {[%clk 0:01:52]}  Nxd4 {[%clk 0:01:07]} 19. Bxd4 {[%clk 0:01:52]} 1-0


[Site "https://www.chess.com"]

[Event "Titled Tuesday Blitz August 15 Early 2023"]
[White "Jia, Haoxiang"]
[Black "Drygalov, Sergey"]
[WhiteFideId "8602999"]
[BlackFideId "24171743"]
[WhiteElo "2595"]
[BlackElo "3004"]
[Result "0-1"]
[Round "2"]
[TimeControl "180+1"]
[Date "2023.08.15"]
[WhiteClock "0:00:03"]
[BlackClock "0:00:22"]
[Board "19"]

1. d4 {[%clk 0:02:59]}  Nf6 {[%clk 0:03:00]} 2. Bf4 {[%clk 0:02:56]}  d5 {[%clk 0:02:59]} 3. e3 {[%clk 0:02:56]}  c5 {[%clk 0:02:59]} 4. c3 {[%clk 0:02:56]}  Nc6 {[%clk 0:03:00]} 5. Nf3 {[%clk 0:02:55]}  Qb6 {[%clk 0:03:00]} 6. Qb3 {[%clk 0:02:55]}  c4 {[%clk 0:03:00]} 7. Qc2 {[%clk 0:02:53]}  Bf5 {[%clk 0:03:00]} 8. Qc1 {[%clk 0:02:53]}  e6 {[%clk 0:03:01]} 9. h3 {[%clk 0:02:52]}  h6 {[%clk 0:03:00]} 10. Nbd2 {[%clk 0:02:52]}  Be7 {[%clk 0:03:01]} 11. Ne5 {[%clk 0:02:53]}  O-O {[%clk 0:03:00]} 12. Be2 {[%clk 0:02:52]}  Rfc8 {[%clk 0:02:56]} 13. g4 {[%clk 0:02:49]}  Bh7 {[%clk 0:02:55]} 14. h4 {[%clk 0:02:49]}  Nxe5 {[%clk 0:02:50]} 15. Bxe5 {[%clk 0:02:49]}  Nd7 {[%clk 0:02:51]} 16. Bf4 {[%clk 0:02:39]}  Qd8 {[%clk 0:02:51]} 17. g5 {[%clk 0:02:28]}  hxg5 {[%clk 0:02:49]} 18. hxg5 {[%clk 0:02:28]}  Bxg5 {[%clk 0:02:50]} 19. Bxg5 {[%clk 0:02:24]}  Qxg5 {[%clk 0:02:50]} 20. Nf3 {[%clk 0:02:24]}  Qf6 {[%clk 0:02:45]} 21. Kd2 {[%clk 0:02:21]}  Be4 {[%clk 0:02:43]} 22. Rh3 {[%clk 0:02:20]}  b5 {[%clk 0:02:42]} 23. Qh1 {[%clk 0:02:19]}  Kf8 {[%clk 0:02:42]} 24. Rg1 {[%clk 0:02:14]}  b4 {[%clk 0:02:41]} 25. Qh2 {[%clk 0:02:12]}  Ke7 {[%clk 0:02:34]} 26. Ne5 {[%clk 0:02:05]}  bxc3+ {[%clk 0:02:27]} 27. Kxc3 {[%clk 0:02:02]}  Bf5 {[%clk 0:02:19]} 28. Rh5 {[%clk 0:01:45]}  Nb6 {[%clk 0:02:17]} 29. Bg4 {[%clk 0:01:19]}  Na4+ {[%clk 0:01:44]} 30. Kd2 {[%clk 0:01:18]}  Be4 {[%clk 0:01:15]} 31. f3 {[%clk 0:01:00]}  Bg6 {[%clk 0:01:15]} 32. Nxg6+ {[%clk 0:00:55]}  Qxg6 {[%clk 0:01:13]} 33. Bf5 {[%clk 0:00:33]}  Qf6 {[%clk 0:01:12]} 34. Bc2 {[%clk 0:00:25]}  Nxb2 {[%clk 0:00:52]} 35. Rh7 {[%clk 0:00:25]}  Qxf3 {[%clk 0:00:37]} 36. Qh4+ {[%clk 0:00:14]}  Kd6 {[%clk 0:00:34]} 37. Qh2+ {[%clk 0:00:10]}  Kd7 {[%clk 0:00:29]} 38. Rhxg7 {[%clk 0:00:10]}  c3+ {[%clk 0:00:30]} 39. Kc1 {[%clk 0:00:10]}  Qxe3+ {[%clk 0:00:27]} 40. Kb1 {[%clk 0:00:11]}  Rf8 {[%clk 0:00:27]} 41. Rf1 {[%clk 0:00:10]}  Nc4 {[%clk 0:00:20]} 42. Rgxf7+ {[%clk 0:00:08]}  Rxf7 {[%clk 0:00:20]} 43. Rxf7+ {[%clk 0:00:08]}  Ke8 {[%clk 0:00:21]} 44. Rf1 {[%clk 0:00:04]}  Nd2+ {[%clk 0:00:20]} 45. Ka1 {[%clk 0:00:04]}  Nxf1 {[%clk 0:00:21]} 46. Qh8+ {[%clk 0:00:04]}  Ke7 {[%clk 0:00:21]} 47. Qxa8 {[%clk 0:00:03]}  Qc1+ {[%clk 0:00:21]} 48. Bb1 {[%clk 0:00:03]}  Qb2# {[%clk 0:00:22]} 0-1


[Site "https://www.chess.com"]

[Event "Titled Tuesday Blitz August 15 Early 2023"]
[White "Dobrikov, Marco"]
[Black "Svane, Rasmus"]
[WhiteFideId "12950378"]
[BlackFideId "4657101"]
[WhiteElo "2590"]
[BlackElo "2997"]
[Result "1-0"]
[Round "2"]
[TimeControl "180+1"]
[Date "2023.08.15"]
[WhiteClock "0:02:06"]
[BlackClock "0:00:00"]
[Board "21"]

1. d4 {[%clk 0:03:00]}  d5 {[%clk 0:02:59]} 2. Bf4 {[%clk 0:03:00]}  e6 {[%clk 0:02:59]} 3. e3 {[%clk 0:03:00]}  Bd6 {[%clk 0:03:00]} 4. Bg3 {[%clk 0:03:00]}  Nf6 {[%clk 0:03:00]} 5. c4 {[%clk 0:02:59]}  O-O {[%clk 0:02:59]} 6. Nc3 {[%clk 0:02:59]}  b6 {[%clk 0:02:46]} 7. Nf3 {[%clk 0:02:57]}  Bb7 {[%clk 0:02:46]} 8. Be2 {[%clk 0:02:51]}  dxc4 {[%clk 0:02:46]} 9. Bxc4 {[%clk 0:02:51]}  Nbd7 {[%clk 0:02:46]} 10. O-O {[%clk 0:02:43]}  Qe7 {[%clk 0:02:42]} 11. Qe2 {[%clk 0:02:39]}  Bxg3 {[%clk 0:02:40]} 12. hxg3 {[%clk 0:02:39]}  c5 {[%clk 0:02:40]} 13. Rfd1 {[%clk 0:02:30]}  Rfd8 {[%clk 0:02:40]} 14. Rac1 {[%clk 0:02:30]}  h6 {[%clk 0:02:25]} 15. Ba6 {[%clk 0:02:29]}  Bxa6 {[%clk 0:02:14]} 16. Qxa6 {[%clk 0:02:30]}  cxd4 {[%clk 0:02:14]} 17. exd4 {[%clk 0:02:27]}  Nb8 {[%clk 0:01:54]} 18. Qe2 {[%clk 0:02:25]}  Nc6 {[%clk 0:00:00]} 19. Rd2 {[%clk 0:02:06]} 1-0


[Site "https://www.chess.com"]

[Event "Titled Tuesday Blitz August 15 Early 2023"]
[White "Chor, Kevin"]
[Black "Le, Tuan Minh"]
[WhiteFideId "2090740"]
[BlackFideId "12401153"]
[WhiteElo "2587"]
[BlackElo "2987"]
[Result "0-1"]
[Round "2"]
[TimeControl "180+1"]
[Date "2023.08.15"]
[WhiteClock "0:00:21"]
[BlackClock "0:01:37"]
[Board "23"]

1. e4 {[%clk 0:03:00]}  c5 {[%clk 0:02:57]} 2. Nf3 {[%clk 0:03:01]}  Nf6 {[%clk 0:02:58]} 3. e5 {[%clk 0:02:43]}  Nd5 {[%clk 0:02:58]} 4. Nc3 {[%clk 0:02:38]}  e6 {[%clk 0:02:58]} 5. Nxd5 {[%clk 0:02:34]}  exd5 {[%clk 0:02:58]} 6. c3 {[%clk 0:02:35]}  Nc6 {[%clk 0:02:57]} 7. d4 {[%clk 0:02:31]}  d6 {[%clk 0:02:56]} 8. exd6 {[%clk 0:02:23]}  Bxd6 {[%clk 0:02:55]} 9. Be2 {[%clk 0:02:24]}  O-O {[%clk 0:02:55]} 10. O-O {[%clk 0:02:24]}  Re8 {[%clk 0:02:56]} 11. h3 {[%clk 0:02:23]}  Bf5 {[%clk 0:02:50]} 12. Be3 {[%clk 0:02:16]}  c4 {[%clk 0:02:50]} 13. b3 {[%clk 0:02:12]}  b5 {[%clk 0:02:50]} 14. b4 {[%clk 0:01:30]}  a5 {[%clk 0:02:48]} 15. a4 {[%clk 0:01:29]}  axb4 {[%clk 0:02:24]} 16. axb5 {[%clk 0:01:27]}  Na7 {[%clk 0:02:18]} 17. Qa4 {[%clk 0:01:06]}  b3 {[%clk 0:02:08]} 18. Ne5 {[%clk 0:01:00]}  b2 {[%clk 0:01:50]} 19. Rad1 {[%clk 0:00:59]}  Qb8 {[%clk 0:01:38]} 20. Bf3 {[%clk 0:00:21]}  Nxb5 {[%clk 0:01:37]} 0-1


[Site "https://www.chess.com"]

[Event "Titled Tuesday Blitz August 15 Early 2023"]
[White "Matlakov, Maxim"]
[Black "Milosevic, Milos"]
[WhiteFideId "4168003"]
[BlackFideId "964875"]
[WhiteElo "2979"]
[BlackElo "2584"]
[Result "1-0"]
[Round "2"]
[TimeControl "180+1"]
[Date "2023.08.15"]
[WhiteClock "0:02:02"]
[BlackClock "0:00:00"]
[Board "24"]

1. d4 {[%clk 0:03:00]}  Nf6 {[%clk 0:02:57]} 2. Nf3 {[%clk 0:03:01]}  g6 {[%clk 0:02:57]} 3. c4 {[%clk 0:02:59]}  Bg7 {[%clk 0:02:57]} 4. g3 {[%clk 0:02:59]}  O-O {[%clk 0:02:56]} 5. Bg2 {[%clk 0:03:00]}  d6 {[%clk 0:02:57]} 6. O-O {[%clk 0:03:00]}  c5 {[%clk 0:02:57]} 7. d5 {[%clk 0:03:00]}  e6 {[%clk 0:02:56]} 8. Nc3 {[%clk 0:03:00]}  exd5 {[%clk 0:02:56]} 9. cxd5 {[%clk 0:03:01]}  a6 {[%clk 0:02:54]} 10. a4 {[%clk 0:03:00]}  Nbd7 {[%clk 0:02:54]} 11. Bf4 {[%clk 0:03:00]}  Re8 {[%clk 0:02:46]} 12. Re1 {[%clk 0:02:53]}  Nh5 {[%clk 0:02:42]} 13. Bg5 {[%clk 0:02:51]}  Qc7 {[%clk 0:02:19]} 14. Qd2 {[%clk 0:02:51]}  Ne5 {[%clk 0:02:04]} 15. Bh6 {[%clk 0:02:39]}  Nxf3+ {[%clk 0:01:59]} 16. Bxf3 {[%clk 0:02:36]}  Nf6 {[%clk 0:01:51]} 17. Bxg7 {[%clk 0:02:35]}  Kxg7 {[%clk 0:01:52]} 18. e4 {[%clk 0:02:32]}  Bg4 {[%clk 0:00:54]} 19. Bg2 {[%clk 0:02:32]}  Re7 {[%clk 0:00:54]} 20. h3 {[%clk 0:02:30]}  Bd7 {[%clk 0:00:54]} 21. f4 {[%clk 0:02:30]}  Rae8 {[%clk 0:00:54]} 22. e5 {[%clk 0:02:29]}  Ng8 {[%clk 0:00:52]} 23. Ne4 {[%clk 0:02:29]}  Qb8 {[%clk 0:00:41]} 24. Nxd6 {[%clk 0:02:25]}  Rd8 {[%clk 0:00:39]} 25. Ne4 {[%clk 0:02:25]}  b6 {[%clk 0:00:34]} 26. Qc3 {[%clk 0:02:23]}  Bf5 {[%clk 0:00:32]} 27. Nd6 {[%clk 0:02:16]}  Bc8 {[%clk 0:00:10]} 28. Rad1 {[%clk 0:02:12]}  Kf8 {[%clk 0:00:09]} 29. Ne4 {[%clk 0:02:06]}  Bb7 {[%clk 0:00:07]} 30. Ng5 {[%clk 0:02:06]}  h6 {[%clk 0:00:07]} 31. Nh7+ {[%clk 0:02:05]}  Kg7 {[%clk 0:00:07]} 32. Nf6 {[%clk 0:02:05]}  Kh8 {[%clk 0:00:07]} 33. e6 {[%clk 0:02:04]}  fxe6 {[%clk 0:00:04]} 34. Nd7+ {[%clk 0:02:02]}  Kh7 {[%clk 0:00:00]} 35. Nxb8 {[%clk 0:02:02]} 1-0


[Site "https://www.chess.com"]

[Event "Titled Tuesday Blitz August 15 Early 2023"]
[White "Manukyan, Sargis A."]
[Black "Sjugirov, Sanan"]
[WhiteFideId "13303970"]
[BlackFideId "4189302"]
[WhiteElo "2584"]
[BlackElo "2967"]
[Result "1-0"]
[Round "2"]
[TimeControl "180+1"]
[Date "2023.08.15"]
[WhiteClock "0:00:43"]
[BlackClock "0:00:00"]
[Board "25"]

1. d4 {[%clk 0:03:00]}  Nf6 {[%clk 0:02:59]} 2. c4 {[%clk 0:03:01]}  e6 {[%clk 0:02:59]} 3. Nc3 {[%clk 0:03:02]}  Bb4 {[%clk 0:02:58]} 4. e3 {[%clk 0:03:02]}  Bxc3+ {[%clk 0:02:56]} 5. bxc3 {[%clk 0:03:02]}  b6 {[%clk 0:02:57]} 6. Bd3 {[%clk 0:03:02]}  Bb7 {[%clk 0:02:56]} 7. f3 {[%clk 0:03:02]}  d6 {[%clk 0:02:56]} 8. Ne2 {[%clk 0:03:02]}  Nfd7 {[%clk 0:02:56]} 9. a4 {[%clk 0:03:02]}  Nc6 {[%clk 0:02:54]} 10. O-O {[%clk 0:03:02]}  Na5 {[%clk 0:02:43]} 11. e4 {[%clk 0:03:00]}  Ba6 {[%clk 0:02:38]} 12. f4 {[%clk 0:02:39]}  Bxc4 {[%clk 0:02:22]} 13. Bxc4 {[%clk 0:02:38]}  Nxc4 {[%clk 0:02:23]} 14. f5 {[%clk 0:02:38]}  exf5 {[%clk 0:02:07]} 15. exf5 {[%clk 0:02:34]}  Nf6 {[%clk 0:01:53]} 16. Qd3 {[%clk 0:02:26]}  d5 {[%clk 0:01:49]} 17. Bg5 {[%clk 0:02:25]}  Qd6 {[%clk 0:01:30]} 18. a5 {[%clk 0:01:49]}  Nxa5 {[%clk 0:01:07]} 19. Ng3 {[%clk 0:01:48]}  O-O {[%clk 0:00:54]} 20. Bf4 {[%clk 0:01:27]}  Qc6 {[%clk 0:00:52]} 21. Be5 {[%clk 0:01:23]}  Nc4 {[%clk 0:00:48]} 22. Rae1 {[%clk 0:01:17]}  Rfe8 {[%clk 0:00:43]} 23. Qf3 {[%clk 0:01:17]}  Nd2 {[%clk 0:00:39]} 24. Qf4 {[%clk 0:01:09]}  Nxf1 {[%clk 0:00:39]} 25. Rxf1 {[%clk 0:01:09]}  a5 {[%clk 0:00:25]} 26. Qg5 {[%clk 0:01:07]}  a4 {[%clk 0:00:19]} 27. h4 {[%clk 0:00:54]}  a3 {[%clk 0:00:17]} 28. h5 {[%clk 0:00:55]}  h6 {[%clk 0:00:16]} 29. Qh4 {[%clk 0:00:46]}  a2 {[%clk 0:00:16]} 30. Ra1 {[%clk 0:00:47]}  Qxc3 {[%clk 0:00:14]} 31. Bxf6 {[%clk 0:00:46]}  Qxa1+ {[%clk 0:00:13]} 32. Kh2 {[%clk 0:00:47]}  Qd1 {[%clk 0:00:07]} 33. Bxg7 {[%clk 0:00:42]}  Kxg7 {[%clk 0:00:06]} 34. f6+ {[%clk 0:00:43]}  Kh7 {[%clk 0:00:06]} 35. Qf4 {[%clk 0:00:43]}  Qd3 {[%clk 0:00:04]} 36. Nf5 {[%clk 0:00:43]}  Rh8 {[%clk 0:00:00]} 37. Qxh6+ {[%clk 0:00:43]} 1-0


[Site "https://www.chess.com"]